fUST/lending_fUST_20241016
["ID","MTS","AMOUNT","RATE_DAILY","PERIOD"]
[340311056,1729023041704,-609.843741,0.00024589,2]
[340311057,1729023041715,-36172.37822196,0.0002459,3]
[340311058,1729023041854,166.089454,0.00023105,2]
[340311078,1729023043140,-500.62513503,0.00024573,2]
[340311079,1729023043150,-1512.13770598,0.0002459,3]
[340311084,1729023054202,274.016755,0.0002363,2]
[340311085,1729023327279,157.467764,0.0002374,2]
[340311086,1729023327523,157.467764,0.00023817,2]
[340311087,1729023327740,157.467764,0.00023894,2]
[340311088,1729023328006,157.467764,0.00023972,2]
[340311089,1729023502843,24900.0,0.00023472,2]
[340311090,1729023567754,166.089454,0.00023074,2]
[340311091,1729023581820,241.557943,0.00023473,2]
[340311092,1729023610833,470.98239841,0.00023682,2]
[340311094,1729023790208,900.0,0.00024,2]
[340311095,1729023869820,158.228125,0.00023723,2]
[340311096,1729023870275,158.228125,0.00023818,2]
[340311097,1729023870316,158.228125,0.00023913,2]
[340311099,1729024059645,166.089454,0.00023034,2]
[340311100,1729024066751,-197.79,0.0002497,120]
[340311101,1729024066832,-150.5,0.0002498,120]
[340311102,1729024066858,-150.5,0.0002499,120]
[340311103,1729024066892,-501.21,0.00027,120]
[340311105,1729024086875,244.873743,0.0002345,2]
[340311112,1729024142832,9669.738182,0.00023443,2]
[340311140,1729024235049,-158.228125,0.00024008,2]
[340311142,1729024235060,-158.228125,0.00024103,2]
[340311144,1729024235070,-5059.42276696,0.00024106,2]
[340311148,1729024235107,-809.97140976,0.00024106,2]
[340311164,1729024238324,-353.45140504,0.00024106,2]
[340311165,1729024238333,-244.873743,0.00024135,2]
[340311166,1729024238343,-160.80982615,0.0002415,2]
[340311189,1729024240339,-139.19017385,0.0002415,2]
[340311190,1729024240349,-300.0,0.0002415,2]
[340311191,1729024240360,-5124.97093905,0.0002415,2]
[340311192,1729024240370,-6222.84558176,0.00024151,2]
[340311193,1729024240379,-158.228125,0.00024198,2]
[340311194,1729024240389,-158.228125,0.00024293,2]
[340311195,1729024240398,-158.228125,0.00024388,2]
[340311196,1729024240407,-6483.80750681,0.0002448,2]
[340311197,1729024240417,-158.228125,0.00024483,2]
[340311198,1729024240427,-2653.11504709,0.0002449,2]
[340311199,1729024240437,-1000.0,0.0002449,2]
[340311200,1729024240447,-745.5857168,0.0002449,2]
[340311201,1729024240457,-954.29318016,0.0002449,2]
[340311202,1729024240467,-1041.99885653,0.00024521,2]
[340311203,1729024240476,-150.0,0.00024555,2]
[340311204,1729024240487,-1000.0,0.00024556,2]
[340311205,1729024240498,-744.63,0.0002457,3]
[340311206,1729024240507,-500.0,0.00024573,2]
[340311207,1729024240517,-500.0,0.00024573,2]
[340311208,1729024240526,-500.0,0.00024573,2]
[340311209,1729024240536,-500.0,0.00024573,2]
[340311210,1729024240546,-500.0,0.00024573,2]
[340311211,1729024240555,-502.72972051,0.00024573,2]
[340311212,1729024240566,-500.0,0.00024573,2]
[340311213,1729024240575,-500.0,0.00024573,2]
[340311214,1729024240584,-500.0,0.00024573,2]
[340311215,1729024240594,-500.0,0.00024573,2]
[340311216,1729024240603,-500.0,0.00024573,2]
[340311217,1729024240613,-500.0,0.00024573,2]
[340311218,1729024240623,-500.0,0.00024573,2]
[340311219,1729024240633,-500.0,0.00024573,2]
[340311220,1729024240643,-500.0,0.00024573,2]
[340311221,1729024240652,-158.228125,0.00024578,2]
[340311222,1729024240662,-500.0,0.00024579,2]
[340311223,1729024240672,-166.33581003,0.00024579,2]
[340311224,1729024240681,-611.82833231,0.00024579,2]
[340311225,1729024240690,-218.98846055,0.00024579,2]
[340311226,1729024240700,-178.78447779,0.00024579,2]
[340311227,1729024240709,-500.0,0.00024579,2]
[340311228,1729024240718,-500.0,0.00024579,2]
[340311229,1729024240728,-409.84374101,0.00024579,2]
[340311230,1729024240738,-500.0,0.00024579,2]
[340311231,1729024240748,-500.0,0.00024579,2]
[340311232,1729024240758,-500.0,0.00024579,2]
[340311233,1729024240767,-500.0,0.00024579,2]
[340311234,1729024240777,-500.0,0.00024579,2]
[340311235,1729024240787,-500.0,0.00024579,2]
[340311236,1729024240800,-500.0,0.00024579,2]
[340311237,1729024240809,-190.9843741,0.00024579,2]
[340311238,1729024240818,-248.21,0.0002458,3]
[340311239,1729024240828,-65109.9654616,0.0002458,3]
[340311240,1729024240839,-39858.99511194,0.0002458,3]
[340311241,1729024240863,-6673.15877617,0.0002458,3]
[340311242,1729024240877,-2236.1265802,0.0002458,3]
[340311243,1729024240888,-6695.1,0.0002458,3]
[340311345,1729024411728,162.409046,0.00023611,2]
[340311346,1729024411962,162.409046,0.00023705,2]
[340311347,1729024412303,162.409046,0.000238,2]
[340311348,1729024412545,162.409046,0.00023895,2]
[340311349,1729024412764,162.409046,0.00023989,2]
[340311350,1729024439023,500.0,0.00023773,7]
[340311351,1729024439810,500.0,0.00023773,7]
[340311352,1729024440556,500.0,0.00023773,7]
[340311353,1729024441300,580.61,0.00023773,7]
[340311354,1729024827119,244.873743,0.00023284,2]
[340311355,1729024847639,348.0,0.00022,2]
[340311356,1729024847990,348.0,0.00022192,2]
[340311357,1729024848308,160.0,0.00022,2]
[340311358,1729024848746,160.0,0.00023014,2]
[340311359,1729024849506,348.0,0.00022466,2]
[340311360,1729024851157,348.0,0.0002274,2]
[340311361,1729024852414,348.0,0.00023014,2]
[340311362,1729024853932,348.0,0.00023014,2]
[340311363,1729024991991,159.439419,0.00023464,2]
[340311364,1729024992349,159.439419,0.00023536,2]
[340311365,1729024992570,159.439419,0.00023607,2]
[340311366,1729024992767,159.439419,0.00023679,2]
[340311367,1729024993102,159.439419,0.00023751,2]
[340311368,1729024993326,159.439419,0.00023823,2]
[340311369,1729024993561,159.439419,0.00023895,2]
[340311370,1729024993800,159.439419,0.00023967,2]
[340311371,1729025039490,151.0,0.0002225,2]
[340311372,1729025058079,166.089454,0.00022889,2]
[340311396,1729025432455,-159.439419,0.00024039,2]
[340311397,1729025432465,-159.439419,0.00024111,2]
[340311399,1729025432475,-337.36625076,0.00024164,2]
[340311458,1729025440688,-22.63374924,0.00024164,2]
[340311459,1729025440699,-163.0,0.00024164,2]
[340311460,1729025440708,-348.0,0.00024164,2]
[340311461,1729025440717,-159.439419,0.00024183,2]
[340311462,1729025440726,-150.0,0.00024247,2]
[340311463,1729025440736,-159.439419,0.00024255,2]
[340311464,1729025440746,-7167.71111214,0.00024293,2]
[340311465,1729025440756,-2220.69343846,0.00024312,2]
[340311466,1729025440765,-300.0,0.00024312,2]
[340311467,1729025440776,-300.0,0.00024312,2]
[340311468,1729025440786,-1854.08286191,0.00024312,2]
[340311469,1729025440797,-23137.99422775,0.00024312,2]
[340311470,1729025440806,-2930.87032658,0.00024313,2]
[340311471,1729025440816,-2930.87032656,0.00024315,2]
[340311472,1729025440826,-745.5857168,0.00024316,2]
[340311473,1729025440835,-2930.87032656,0.00024318,2]
[340311474,1729025440845,-2930.87032656,0.0002432,2]
[340311475,1729025440855,-2930.87032656,0.00024322,2]
[340311476,1729025440865,-3285.45230625,0.00024322,2]
[340311477,1729025440875,-1000.0,0.00024323,2]
[340311478,1729025440884,-159.439419,0.00024327,2]
[340311479,1729025440894,-191.07,0.00024331,2]
[340311480,1729025440904,-209.41121093,0.00024333,7]
[340311481,1729025440913,-701.43,0.00024393,3]
[340311482,1729025440923,-350.71,0.00024393,3]
[340311483,1729025440934,-175.36,0.00024393,3]
[340311484,1729025440944,-526.1,0.00024393,3]
[340311485,1729025440953,-159.439419,0.00024399,2]
[340311486,1729025440963,-150.112233,0.000244,5]
[340311487,1729025440973,-150.112233,0.000244,5]
[340311488,1729025440982,-150.112233,0.000244,5]
[340311489,1729025440992,-150.112233,0.000244,4]
[340311490,1729025441002,-150.112233,0.000244,3]
[340311491,1729025441013,-150.112233,0.000244,4]
[340311492,1729025441024,-150.112233,0.000244,3]
[340311493,1729025441036,-150.112233,0.000244,5]
[340311494,1729025441046,-150.112233,0.000244,5]
[340311495,1729025441057,-150.112233,0.000244,2]
[340311496,1729025441067,-150.112239,0.000244,4]
[340311497,1729025441076,-500.0,0.00024402,2]
[340311498,1729025441086,-500.0,0.00024402,2]
[340311499,1729025441095,-500.0,0.00024402,2]
[340311500,1729025441105,-406.99966075,0.00024402,2]
[340311501,1729025441114,-500.0,0.00024402,2]
[340311502,1729025441123,-500.0,0.00024402,2]
[340311503,1729025441133,-516.6496138,0.00024402,2]
[340311504,1729025441142,-500.0,0.00024402,2]
[340311505,1729025441152,-500.0,0.00024402,2]
[340311506,1729025441161,-500.0,0.00024402,2]
[340311507,1729025441171,-500.0,0.00024402,2]
[340311508,1729025441180,-500.0,0.00024402,2]
[340311509,1729025441189,-500.0,0.00024402,2]
[340311510,1729025441198,-500.0,0.00024402,2]
[340311511,1729025441207,-500.0,0.00024402,2]
[340311512,1729025441217,-500.0,0.00024402,2]
[340311513,1729025441227,-500.0,0.00024402,2]
[340311514,1729025441236,-500.0,0.00024402,2]
[340311515,1729025441245,-500.0,0.00024402,2]
[340311516,1729025441255,-500.0,0.00024402,2]
[340311517,1729025441264,-500.0,0.00024402,2]
[340311518,1729025441278,-500.0,0.00024402,2]
[340311519,1729025441288,-500.0,0.00024402,2]
[340311520,1729025441297,-500.0,0.00024402,2]
[340311521,1729025441306,-500.0,0.00024402,2]
[340311522,1729025441316,-500.0,0.00024402,2]
[340311523,1729025441325,-500.0,0.00024402,2]
[340311524,1729025441334,-500.0,0.00024402,2]
[340311525,1729025441343,-500.0,0.00024402,2]
[340311526,1729025441352,-500.0,0.00024402,2]
[340311527,1729025441361,-500.0,0.00024402,2]
[340311528,1729025441370,-500.0,0.00024402,2]
[340311529,1729025441379,-500.0,0.00024402,2]
[340311530,1729025441390,-500.0,0.00024402,2]
[340311531,1729025441400,-500.0,0.00024402,2]
[340311532,1729025441411,-500.0,0.00024402,2]
[340311533,1729025441421,-500.0,0.00024402,2]
[340311534,1729025441431,-500.0,0.00024402,2]
[340311535,1729025441441,-500.0,0.00024402,2]
[340311536,1729025441454,-500.0,0.00024402,2]
[340311537,1729025441464,-500.0,0.00024402,2]
[340311538,1729025441473,-500.0,0.00024402,2]
[340311539,1729025441487,-500.0,0.00024402,2]
[340311540,1729025441499,-500.0,0.00024402,2]
[340311541,1729025441509,-500.0,0.00024402,2]
[340311542,1729025441519,-500.0,0.00024402,2]
[340311543,1729025441530,-500.0,0.00024402,2]
[340311544,1729025441712,-500.0,0.00024402,2]
[340311545,1729025441722,-500.0,0.00024402,2]
[340311546,1729025441732,-500.0,0.00024402,2]
[340311547,1729025441741,-500.0,0.00024402,2]
[340311548,1729025441751,-499.99999999,0.00024402,2]
[340311549,1729025441760,-500.0,0.00024402,2]
[340311550,1729025441769,-500.0,0.00024402,2]
[340311551,1729025441780,-500.0,0.00024402,2]
[340311552,1729025441789,-584.81290198,0.00024402,2]
[340311553,1729025441799,-500.0,0.00024402,2]
[340311554,1729025441807,-500.0,0.00024402,2]
[340311555,1729025441817,-500.0,0.00024402,2]
[340311556,1729025441826,-500.0,0.00024402,2]
[340311557,1729025441836,-500.0,0.00024402,2]
[340311558,1729025441845,-500.0,0.00024402,2]
[340311559,1729025441857,-500.0,0.00024402,2]
[340311560,1729025441876,-500.0,0.00024402,2]
[340311561,1729025441888,-500.0,0.00024402,2]
[340311562,1729025441897,-500.0,0.00024402,2]
[340311563,1729025441907,-500.0,0.00024402,2]
[340311564,1729025441917,-500.0,0.00024402,2]
[340311565,1729025441927,-500.0,0.00024402,2]
[340311566,1729025441936,-500.0,0.00024402,2]
[340311567,1729025441946,-500.0,0.00024402,2]
[340311568,1729025441956,-151.0,0.00024402,7]
[340311569,1729025441965,-556.106067,0.00024402,7]
[340311570,1729025441976,-151.0,0.00024402,7]
[340311571,1729025441986,-556.106067,0.00024402,7]
[340311572,1729025441996,-247.36382864,0.00024402,2]
[340311573,1729025442006,-269.04127328,0.00024402,2]
[340311574,1729025442016,-251.52446441,0.00024402,2]
[340311575,1729025442027,-500.0,0.00024402,2]
[340311576,1729025442038,-500.0,0.00024402,2]
[340311577,1729025442048,-299.29020361,0.00024402,2]
[340311578,1729025442058,-453.61298188,0.00024402,2]
[340311579,1729025442067,-188.32889129,0.00024402,2]
[340311580,1729025442076,-105179.624382,0.00024403,3]
[340311581,1729025442086,-52016.8237162,0.00024403,3]
[340311582,1729025442096,-151.0,0.00024403,7]
[340311583,1729025442106,-151.0,0.00024403,7]
[340311584,1729025442116,-556.106067,0.00024403,7]
[340311585,1729025442127,-556.106067,0.00024403,7]
[340311586,1729025442137,-219.005435,0.00024403,7]
[340311587,1729025442147,-556.106067,0.00024403,7]
[340311588,1729025442157,-556.106067,0.00024403,7]
[340311589,1729025442167,-52183.15648749,0.00024403,3]
[340311595,1729025443628,-277.861497,0.00024402,7]
[340311596,1729025443639,-151.0,0.00024402,7]
[340311597,1729025443649,-277.861497,0.00024403,7]
[340311598,1729025443658,-277.861497,0.00024403,7]
[340311599,1729025443667,-151.0,0.00024403,7]
[340311600,1729025443676,-246227.20073134,0.00024403,3]
[340311601,1729025443688,-17128.51592617,0.00024403,3]
[340311602,1729025443697,-86242.74603352,0.00024403,3]
[340311608,1729025446525,-277.861497,0.00024402,7]
[340311609,1729025446537,-151.0,0.00024402,7]
[340311610,1729025446546,-151.0,0.00024403,7]
[340311611,1729025446556,-277.861497,0.00024403,7]
[340311612,1729025446565,-277.861497,0.00024403,7]
[340311613,1729025446574,-151.0,0.00024403,7]
[340311614,1729025446583,-151.046111,0.00024403,7]
[340311615,1729025446593,-173841.37254748,0.00024403,3]
[340311616,1729025446602,-151.0,0.00024404,7]
[340311617,1729025446610,-151.0,0.00024404,7]
[340311618,1729025446620,-556.106067,0.00024404,7]
[340311619,1729025446629,-556.106067,0.00024404,7]
[340311620,1729025446638,-556.106067,0.00024404,7]
[340311621,1729025446647,-556.106067,0.00024404,7]
[340311622,1729025446657,-277.861497,0.00024404,7]
[340311623,1729025446666,-277.861497,0.00024404,7]
[340311624,1729025446675,-151.0,0.00024404,7]
[340311625,1729025446685,-151.0,0.00024404,7]
[340311626,1729025446695,-277.861497,0.00024404,7]
[340311627,1729025446704,-277.861497,0.00024404,7]
[340311628,1729025446714,-151.0,0.00024412,7]
[340311629,1729025446723,-864.394079,0.00024412,7]
[340311630,1729025446733,-151.0,0.00024412,7]
[340311631,1729025446742,-864.394079,0.00024412,7]
[340311632,1729025446751,-167.564303,0.00024412,7]
[340311633,1729025446761,-167.564303,0.00024412,7]
[340311634,1729025446771,-151.0,0.00024412,7]
[340311635,1729025446781,-151.0,0.00024412,7]
[340311636,1729025446791,-2225.079121,0.00024412,7]
[340311637,1729025446800,-2225.079121,0.00024412,7]
[340311638,1729025446810,-4040.421965,0.00024412,7]
[340311639,1729025446819,-4040.421965,0.00024412,7]
[340311640,1729025446828,-2508.040261,0.00024412,7]
[340311641,1729025446838,-66.37247496,0.00024412,7]
[340311643,1729025555114,159.439419,0.00023579,2]
[340311644,1729025555364,159.439419,0.00023988,2]
[340311645,1729025671933,166.522363,0.00022993,2]
[340311646,1729025713758,18448.9459514,0.00023387,2]
[340311647,1729025756451,196.56737139,0.00023,2]
[340311648,1729025771411,218.19068671,0.00023671,2]
[340311649,1729025907216,224.9589807,0.00023371,2]
[340311650,1729025955547,30000.00000001,0.00024,2]
[340311651,1729026110560,151.0,0.000222,2]
[340311652,1729026111536,151.0,0.0002249,120]
[340311653,1729026112396,151.0,0.0002249,7]
[340311654,1729026112848,151.0,0.0002374,5]
[340311655,1729026113806,801.0,0.00024,2]
[340311656,1729026133630,250.0,0.00023559,2]
[340311657,1729026133888,250.0,0.00023624,2]
[340311658,1729026134099,250.0,0.00023688,2]
[340311659,1729026134405,250.0,0.00023753,2]
[340311660,1729026134625,250.0,0.00023817,2]
[340311661,1729026134868,250.0,0.00023882,2]
[340311662,1729026135255,250.0,0.00023947,2]
[340311663,1729026152546,166.498582,0.00023061,2]
[340311664,1729026221859,6451.0540486,0.00023343,2]
[340311720,1729026342870,1000.0,0.00024,2]
[340311721,1729026367792,-498.79,0.00027,120]
[340311722,1729026379525,300.0,0.00027,120]
[340311723,1729026379748,543.198025,0.00027,120]
[340311724,1729026381321,300.0,0.00027,120]
[340311725,1729026381575,550.0,0.00027,120]
[340311726,1729026387510,300.0,0.00027,120]
[340311727,1729026387683,300.0,0.00027,120]
[340311728,1729026387871,300.0,0.00027,120]
[340311729,1729026388112,300.0,0.00027,120]
[340311730,1729026388353,300.0,0.00027,120]
[340311731,1729026388678,300.0,0.00027,120]
[340311732,1729026388903,300.0,0.00027,120]
[340311733,1729026389086,300.0,0.00027,120]
[340311734,1729026389476,300.0,0.00027,120]
[340311735,1729026389722,300.0,0.00027,120]
[340311736,1729026389980,300.0,0.00027,120]
[340311737,1729026390190,300.0,0.00027,120]
[340311738,1729026390393,300.0,0.00027,120]
[340311739,1729026390578,300.0,0.00027,120]
[340311740,1729026390793,300.0,0.00027,120]
[340311741,1729026391036,300.0,0.00027,120]
[340311742,1729026391421,300.0,0.00027,120]
[340311743,1729026391866,300.0,0.00027,120]
[340311744,1729026392299,300.0,0.00027,120]
[340311745,1729026392498,300.0,0.00027,120]
[340311746,1729026392767,300.0,0.00027,120]
[340311747,1729026392996,300.0,0.00027,120]
[340311748,1729026393205,300.0,0.00027,120]
[340311749,1729026393455,300.0,0.00027,120]
[340311750,1729026393701,300.0,0.00027,120]
[340311751,1729026393918,300.0,0.00027,120]
[340311752,1729026394307,300.0,0.00027,120]
[340311753,1729026394514,300.0,0.00027,120]
[340311754,1729026394727,300.0,0.00027,120]
[340311755,1729026395145,300.0,0.00027,120]
[340311756,1729026395988,300.0,0.00027,120]
[340311757,1729026396034,300.0,0.00027,120]
[340311758,1729026396265,300.0,0.00027,120]
[340311759,1729026396523,300.0,0.00027,120]
[340311760,1729026396701,300.0,0.00027,120]
[340311761,1729026397112,300.0,0.00027,120]
[340311762,1729026397140,300.0,0.00027,120]
[340311763,1729026397472,300.0,0.00027,120]
[340311764,1729026397704,300.0,0.00027,120]
[340311765,1729026398118,300.0,0.00027,120]
[340311766,1729026398316,503.38081075,0.00027,120]
[340311767,1729026603436,-1000.0,0.00029,120]
[340311848,1729026632690,-6271.74722314,0.00024089,2]
[340311851,1729026632700,-300.0,0.00024172,2]
[340311854,1729026632709,-300.0,0.00024172,2]
[340311857,1729026632719,-500.0,0.00024173,2]
[340311860,1729026632729,-500.0,0.00024173,2]
[340311862,1729026632739,-500.0,0.00024173,2]
[340311864,1729026632749,-534.69335614,0.00024173,2]
[340311866,1729026632759,-500.0,0.00024173,2]
[340311869,1729026632768,-108.52432957,0.00024173,2]
[340311881,1729026633761,-1000.0,0.00025,30]
[340311882,1729026634131,178.443942,0.00023349,2]
[340311883,1729026634380,178.443942,0.00023413,2]
[340311884,1729026634608,178.443942,0.00023477,2]
[340311885,1729026634848,178.443942,0.00023541,2]
[340311886,1729026635450,178.443942,0.00023605,2]
[340311887,1729026635491,178.443942,0.00023669,2]
[340311888,1729026635748,178.443942,0.00023733,2]
[340311889,1729026635990,178.443942,0.00023797,2]
[340311890,1729026636262,178.443942,0.00023861,2]
[340311891,1729026636483,178.443942,0.00023925,2]
[340311892,1729026636744,178.443942,0.00023989,2]
[340311900,1729026638850,-178.443942,0.00024053,2]
[340311901,1729026638859,-178.443942,0.00024117,2]
[340311902,1729026638873,-391.47567043,0.00024173,2]
[340311903,1729026638883,-500.0,0.00024173,2]
[340311904,1729026638892,-500.0,0.00024173,2]
[340311905,1729026638901,-178.443942,0.00024181,2]
[340311906,1729026638912,-176.06712509,0.00024188,2]
[340311907,1729026638922,-240.02197827,0.00024188,2]
[340311908,1729026638931,-322.99996231,0.00024188,2]
[340311909,1729026638943,-173.15468005,0.00024188,2]
[340311910,1729026638953,-500.0,0.00024188,2]
[340311911,1729026638962,-559.50314252,0.00024188,2]
[340311912,1729026638972,-167.52908732,0.00024188,2]
[340311913,1729026638981,-500.0,0.00024188,2]
[340311914,1729026638990,-500.0,0.00024188,2]
[340311915,1729026639000,-500.0,0.00024188,2]
[340311916,1729026639009,-500.0,0.00024188,2]
[340311917,1729026639019,-500.0,0.00024188,2]
[340311918,1729026639028,-500.0,0.00024188,2]
[340311919,1729026639038,-500.0,0.00024188,2]
[340311920,1729026639047,-345.68272375,0.00024188,2]
[340311921,1729026639056,-2020.37499999,0.00024188,2]
[340311922,1729026639066,-42.85880427,0.00024189,3]
[340311923,1729026639079,-4848.45443033,0.00024189,3]
[340311924,1729026639090,-32332.26120134,0.00024189,3]
[340311953,1729026645879,-4939.0,0.00025,30]
[340311956,1729026660387,8042.4514728,0.00023465,2]
[340311957,1729026660878,8042.4514728,0.00023965,2]
[340311958,1729026668504,-0.7576665,0.00025,30]
[340311959,1729026668536,-2106.01,0.00028,30]
[340311960,1729026668558,-2832.2323335,0.00028,30]
[340311961,1729026683988,-1015.9,0.00028,30]
[340311963,1729026701957,-0.0176665,0.00028,30]
[340311964,1729026701984,-13233.9823335,0.00029,30]
[340311969,1729027180775,153.0,0.0002487,120]
[340311972,1729027290030,150.0,0.00027,120]
[340311973,1729027294098,150.0,0.00027,120]
[340311974,1729027296426,150.0,0.00027,120]
[340311975,1729027300707,150.0,0.00027,120]
[340311976,1729027303528,205.39010044,0.00027,120]
[340311977,1729027304269,205.62122865,0.00027,120]
[340311978,1729027317950,178.443942,0.00023338,2]
[340311979,1729027318174,178.443942,0.00023581,2]
[340311980,1729027318676,178.443942,0.00023824,2]
[340311981,1729027332334,3992.84352861,0.00024,2]
[340311982,1729027548733,150.0,0.00027,120]
[340311983,1729027555369,150.0,0.00027,120]
[340311984,1729027556946,150.0,0.00027,120]
[340311985,1729027559573,150.0,0.00027,120]
[340311986,1729027718856,799.576655,0.00023,2]
[340311987,1729027727322,250.0,0.00027,120]
[340311988,1729027729330,150.0,0.00027,120]
[340311989,1729027733039,150.0,0.00027,120]
[340311993,1729027823805,178.443942,0.00023327,2]
[340311994,1729027824051,178.443942,0.00023935,2]
[340312406,1729027851027,658.48,0.00023164,2]
[340312407,1729027946197,150.0,0.00027,120]
[340312408,1729027949113,150.0,0.00027,120]
[340312409,1729028083880,423.98451436,0.00024,2]
[340312410,1729028142642,197.94671726,0.00027,120]
[340312411,1729028145419,150.0,0.00027,120]
[340312412,1729028250235,153.0,0.0002487,120]
[340312413,1729028350374,250.0,0.00027,120]
[340312414,1729028381871,24900.0,0.00023134,2]
[340312415,1729028403539,166.498582,0.00022876,2]
[340312417,1729028653085,176.64032,0.00023158,2]
[340312418,1729028739845,500.0,0.00024,2]
[340312419,1729028740174,500.0,0.00024,2]
[340312420,1729028740563,500.0,0.00024,2]
[340312421,1729028740892,574.5251084,0.00024,2]
[340312422,1729028827102,166.6666669,0.00022786,2]
[340312423,1729028920854,24900.0,0.00023143,2]
[340312584,1729029042226,178.4439504,0.00023303,2]
[340312604,1729029298909,847.9690287,0.00023939,2]
[340312605,1729029433609,24900.0,0.00023133,2]
[340312606,1729029588800,169.629418,0.00023284,2]
[340312607,1729029589006,169.629418,0.00023348,2]
[340312608,1729029589612,169.629418,0.00023412,2]
[340312609,1729029589844,169.629418,0.00023476,2]
[340312610,1729029590093,169.629418,0.0002354,2]
[340312611,1729029590353,169.629418,0.00023604,2]
[340312612,1729029590795,169.629418,0.00023667,2]
[340312613,1729029591318,169.629418,0.00023731,2]
[340312614,1729029591432,169.629418,0.00023795,2]
[340312615,1729029591680,169.629418,0.00023859,2]
[340312616,1729029591918,169.629418,0.00023923,2]
[340312617,1729029592143,169.629418,0.00023987,2]
[340312618,1729029755475,164.928839,0.00022829,2]
[340312619,1729029966604,264.370979,0.000238,2]
[340312620,1729030086323,2807.6286949,0.00023099,2]
[340312621,1729030097510,5000.0,0.00024,2]
[340312622,1729030109047,1471.64123672,0.00024,2]
[340312626,1729030175505,169.629418,0.00023275,2]
[340312627,1729030175937,169.629418,0.00023448,2]
[340312628,1729030176184,169.629418,0.00023621,2]
[340312629,1729030176428,169.629418,0.00023794,2]
[340312630,1729030176666,169.629418,0.00023968,2]
[340312762,1729030238498,-3933.34787976,0.00024008,2]
[340312774,1729030240182,-1554.43094047,0.00024008,2]
[340312775,1729030240192,-1762.70310839,0.00024028,2]
[340312785,1729030243354,-1194.20396719,0.00024028,2]
[340312786,1729030243363,-726.38318369,0.00024029,2]
[340312787,1729030243430,-273.61681631,0.00024029,2]
[340312788,1729030243440,-200.0,0.00024096,10]
[340312789,1729030243451,-300.0,0.00024096,2]
[340312790,1729030243460,-300.0,0.00024097,2]
[340312791,1729030243470,-745.45,0.00024099,3]
[340312792,1729030243479,-372.73,0.00024099,3]
[340312793,1729030243488,-186.36,0.00024099,3]
[340312794,1729030243498,-559.13,0.00024099,3]
[340312795,1729030243507,-178.681569,0.000241,3]
[340312796,1729030243519,-150.112233,0.000241,5]
[340312797,1729030243528,-150.112233,0.000241,2]
[340312798,1729030243538,-150.112233,0.000241,2]
[340312799,1729030243548,-150.112233,0.000241,5]
[340312800,1729030243558,-150.112233,0.000241,4]
[340312801,1729030243567,-150.112233,0.000241,3]